Cogmind - Beta 16.1 @@@ ROGUE MODE // 2026.03.04 @ 20:40:35 Player: Kakograf Result: Destroyed by B-75 Beast with Heavy Machine Gun Performance ------------- Evolutions (3) 1500 Regions Visited (5) 1000 Robots Destroyed (36) 180 Value Destroyed (1304) 1304 Prototype IDs (1) 20 Alien Tech Used (0) 0 Bonus (0) 0 TOTAL SCORE: 4004 Bonus ------- None Cogmind --------- Core Integrity 0/700 Matter 265/300 Energy 100/100 System Corruption 2% Temperature Cool (12) Movement Core (50) Location -7/Lower Caves Parts ------- > --- POWER (2) -------- (None) > --- PROPULSION (3) --- (None) > --- UTILITY (5) ------ Signal Interpreter Improved Melee Analysis Suite > --- WEAPON (3) ------- Katana > --- INVENTORY (5) ---- Force Booster ECM Suite Powered Hammer Katana Chainsword Peak State ------------ > --- POWER ------------ Light Nuclear Core Improved Deuterium Engine > --- PROPULSION ------- VSS Leg VSS Leg > --- UTILITY ---------- Small Storage Unit Signal Interpreter Improved Melee Analysis Suite Reaction Control System Dynamic Insulation System > --- WEAPON ----------- Katana Katana Katana > --- INVENTORY -------- Trap Scanner Melee Analysis Suite Powered Hammer Katana Chainsword Chainsword [Rating: 37] Favorites ----------- Power Light Nuclear Core Engine Ion Engine Power Core Light Nuclear Core Propulsion VSS Leg Leg VSS Leg Utility Small Storage Unit Device Sensor Array Storage Small Storage Unit Processor Signal Interpreter Weapon Katana Energy Gun Medium Laser Ballistic Gun Assault Rifle Launcher Rocket Launcher Slashing Weapon Katana Build | -11 -10 -9 -8 -7 -7 ------- Run | Yrd Mat Mat Mat Fac Low Slots Evolved 6 | . . 2 2 2 . Power 1 | . . . . 1 . Propulsion 1 | . . . 1 . . Utility 3 | . . 2 . 1 . Weapon 1 | . . . 1 . . Parts Attached 34 | 6 1 7 11 9 . Power 8 | 1 . 2 2 3 . Engine 6 | 1 . 2 1 2 . Core 2 | . . . 1 1 . Reactor . | . . . . . . Propulsion 6 | 2 . 2 1 1 . Treads . | . . . . . . Leg 6 | 2 . 2 1 1 . Wheel . | . . . . . . Hover . | . . . . . . Flight . | . . . . . . Utility 9 | 1 1 2 1 4 . Device 4 | . 1 . 1 2 . Storage 1 | 1 . . . . . Processor 4 | . . 2 . 2 . Hackware . | . . . . . . Protection . | . . . . . . Artifact . | . . . . . . Weapon 11 | 2 . 1 7 1 . Energy Gun 1 | 1 . . . . . Energy Cannon . | . . . . . . Ballistic Gun 3 | 1 . . 2 . . Ballistic Cannon . | . . . . . . Launcher 3 | . . 1 2 . . Special Weapon . | . . . . . . Impact Weapon . | . . . . . . Slashing Weapon 4 | . . . 3 1 . Piercing Weapon . | . . . . . . Special Melee Weapon . | . . . . . . Unidentified Prototypes 1 | . . 1 . . . Parts Lost 18 | . . . 2 7 9 Power 4 | . . . . 2 2 Propulsion 4 | . . . . 2 2 Utility 5 | . . . . 2 3 Weapon 5 | . . . 2 1 2 Highest Loss Streak 9 | . . . 1 7 9 To Critical Strikes . | . . . . . . Average Backups 6 | 1 4 7 7 6 8 Power . | . 1 1 . . . Propulsion . | . . 1 1 . . Utility 2 | . 1 1 2 2 4 Weapon 2 | . 2 4 2 3 4 Tool/Special . | . . . . . . Unused Backups 19 | . . 4 6 1 8 Power 1 | . . . 1 . . Propulsion 2 | . . 1 1 . . Utility 7 | . . . 2 1 4 Weapon 9 | . . 3 2 . 4 Tool/Special . | . . . . . . Average Slot Usage (%) 93 | . 97 97 95 88 84 Engine 8 | . 14 11 4 8 6 Core 3 | . . . 4 4 6 Leg 23 | . 28 22 26 17 12 Device 12 | . 11 11 13 11 12 Storage 9 | . 14 11 9 7 7 Processor 10 | . . 19 13 14 15 Energy Gun 4 | . 14 11 . . . Ballistic Gun 5 | . 14 8 2 . . Launcher 2 | . . 2 6 . . Slashing Weapon 11 | . . . 13 22 21 Peak Build Rating 37 | 6 8 18 29 37 37 Average Rating 22 | 4 7 12 26 33 33 On Entrance 16 | . 6 8 18 29 37 Avg Prop Armor Cover (%) 5 | . . . 5 6 6 Naked Turns . | . . . . . . Heaviest Build 29 | 14 15 20 26 29 29 Greatest Support 36 | 20 20 24 36 36 12 Greatest Overweight (x) 9 | 2 . . 1 2 9 Average Overweight (x) . | . . . . . 2 Largest Inventory Capacity 8 | 8 8 8 8 8 8 Average Capacity 7 | 7 8 8 8 8 8 Most Carried 8 | 2 7 8 8 8 8 Average Carried 6 | 1 4 7 7 6 8 Final Capacity 8 | 8 8 8 8 8 5 Final Carried 8 | 2 7 8 8 8 5 Class Distribution -------------------- 57% | Mutant 27% | Gladiator 8% | Skirmisher 6% | Scientist-Gladiator Dominant Class ---------------- Mutant | -10/Materials Mutant | -9/Materials Mutant | -8/Materials Gladiator | -7/Factory Gladiator | -7/Lower Caves Resources | -11 -10 -9 -8 -7 -7 ----------- Run | Yrd Mat Mat Mat Fac Low Matter Collected 916 | 260 58 73 467 57 1 Remotely . | . . . . . . Salvage Created 1272 | . 113 118 788 253 . Parts 80 | . 7 13 46 14 . Haulers Intercepted 2 | . . 2 . . . Recyclers Shooed . | . . . . . . Parts Field Recycled . | . . . . . . Retrieved Matter . | . . . . . . Parts Self-Destructed . | . . . . . . Prevented . | . . . . . . Parts Restored . | . . . . . . Kills | -11 -10 -9 -8 -7 -7 ------- Run | Yrd Mat Mat Mat Fac Low Combat Hostiles Destroyed 26 | . 2 1 17 6 . Melee 14 | . . . 8 6 . Guns 4 | . 2 . 2 . . AOE 8 | . . 1 7 . . Classes Destroyed 12 | . 2 2 6 2 . Worker 2 | . . . 1 1 . Builder 1 | . . 1 . . . Hauler 2 | . . 2 . . . Recycler 1 | . . . 1 . . Operator 1 | . . . 1 . . Watcher 3 | . 1 . 2 . . Swarmer 3 | . . . . 3 . Grunt 12 | . 2 1 9 . . Brawler 1 | . . . 1 . . Sentry 7 | . . . 5 2 . Hunter 2 | . . . 2 . . Programmer 1 | . . . . 1 . Best Kill Streak 6 | . 2 2 6 5 . Combat Bots Only 5 | . 2 1 5 4 . Max Kills in Single Turn 4 | . 1 1 4 2 . Gunslinging . | . . . . . . Exploded 3 | . . 1 3 . . Melee 2 | . . . 1 2 . Uniques/NPCs Destroyed . | . . . . . . Combat | -11 -10 -9 -8 -7 -7 -------- Run | Yrd Mat Mat Mat Fac Low Hostile Shots Fired 220 | . 15 4 55 116 30 Missed 68 | . 3 1 18 44 2 Hits 152 | . 12 3 37 72 28 Melee 1 | . . . 1 . . Projectile 151 | . 12 3 36 72 28 Critical Strikes 3 | . . . 2 . 1 Damage Taken 2341 | . 130 35 625 759 792 Core 889 | . 11 23 151 252 452 Absorbed by Shields . | . . . . . . Core Remaining (%) 90 | 100 95 94 72 . . Volleys Fired 48 | . 18 9 21 . . Largest 3 | . 2 2 3 . . Hottest 99 | . 70 83 99 . . Shots Fired 97 | . 36 18 43 . . Gun 71 | . 36 15 20 . . Cannon . | . . . . . . Launcher 26 | . . 3 23 . . Special . | . . . . . . Kinetic 44 | . 18 6 20 . . Thermal 27 | . 18 9 . . . Explosive 26 | . . 3 23 . . Electromagnetic . | . . . . . . Robot Hit Streak 13 | . 10 13 8 . . Robot Miss Streak 5 | . 4 3 5 . . Penetration Max . | . . . . . . Secondary Targets 1 | . 1 . . . . Max Gunslinging Chain 1 | . 1 . . . . Shots Hit Robots 99 | . 24 13 38 22 2 Core Hits 63 | . 6 7 40 10 . Critical Kills . | . . . . . . Critical Parts Destroyed 1 | . 1 . . . . Critical Strikes 5 | . 1 . 2 2 . Destroy 1 | . 1 . . . . Sever 4 | . . . 2 2 . Melee Attacks 50 | . . . 18 30 2 Impact . | . . . . . . Slashing 50 | . . . 18 30 2 Piercing . | . . . . . . Sneak Attacks 3 | . . . 2 1 . Combat Hostiles 1 | . . . 1 . . Follow-up Attacks 8 | . . . 1 7 . Damage Inflicted 3177 | . 293 261 1813 742 68 Guns 652 | . 293 135 224 . . Cannons . | . . . . . . Explosions 1158 | . . 126 1032 . . Melee 1333 | . . . 523 742 68 Ramming 34 | . . . 34 . . Kinetic 419 | . 146 49 224 . . Thermal 598 | . 147 86 365 . . Explosive 793 | . . 126 667 . . Electromagnetic . | . . . . . . Impact . | . . . . . . Slashing 1333 | . . . 523 742 68 Piercing . | . . . . . . Highest Corruption 3 | . . 3 1 2 2 Average Corruption 1 | . . 3 1 1 2 Corruption Purged . | . . . . . . Corruption Blocked . | . . . . . . Effects 9 | . . 2 . 6 1 Message Errors 2 | . . . . 2 . Matter Fused 4 | . . . . 3 1 Heat Flow Errors 1 | . . 1 . . . Parts Rejected 1 | . . . . 1 . Data Loss (minor) 1 | . . 1 . . . Overload Shots . | . . . . . . Overflow Damage 63 | . . . 62 1 . Projectiles . | . . . . . . Explosions . | . . . . . . Melee 63 | . . . 62 1 . Knockbacks . | . . . . . . Impact . | . . . . . . Kinetic . | . . . . . . Secondary . | . . . . . . Self-Inflicted Damage 50 | . . . 50 . . Shots 2 | . . . 2 . . Rammed . | . . . . . . Targets Rammed 8 | . . . 8 . . Kicked 8 | . . . 8 . . Crushed . | . . . . . . Highest Temperature 237 | . 162 237 81 2 . Average Temperature 46 | . 54 78 25 2 . Received Heat Transfer 537 | . 72 18 243 96 108 Siege Activations . | . . . . . . Martial Activations . | . . . . . . Shielding Activations . | . . . . . . Robots Disrupted . | . . . . . . Combat Hostiles . | . . . . . . Robots Corrupted . | . . . . . . Combat Hostiles . | . . . . . . Parts Fried . | . . . . . . Impact Corruptions . | . . . . . . Robots Melted . | . . . . . . Combat Hostiles . | . . . . . . Parts Melted . | . . . . . . Heat Transferred 903 | . 444 259 200 . . Parts Sabotaged . | . . . . . . Parts Stolen . | . . . . . . Parts Stripped . | . . . . . . Power Chain Reactions . | . . . . . . Alert | -11 -10 -9 -8 -7 -7 ------- Run | Yrd Mat Mat Mat Fac Low Maximum Alert Level 1 | . . . 1 . . Low Security (%) 70 | 100 100 100 6 100 . Level 1 29 | . . . 93 . . Level 2 . | . . . . . . Level 3 . | . . . . . . Level 4 . | . . . . . . Level 5 . | . . . . . . High Security . | . . . . . . Max Security . | . . . . . . Peak Influence 346 | . 40 54 346 146 . Initial 146 | . . 5 14 146 . Average 107 | . 4 8 273 61 . Influence Increases 1043 | . 107 68 662 206 . Destroy 0b10 Robot/C 520 | . 40 20 340 120 . Destroy 0b10 Robot/NC 55 | . 5 15 30 5 . Destroy Leader 170 | . 12 14 104 40 . Successful Hack 43 | . 5 . 14 24 . Disable Machine 90 | . . . 90 . . Destroy Structure 90 | . . 19 69 2 . Partial Spotted 15 | . . . 15 . . Lose Combat Pursuer 60 | . 45 . . 15 . Influence Decreases 1043 | . 92 49 374 520 8 Entered New Map 210 | . . 10 20 176 4 Time Decay 743 | . 92 39 334 274 4 Lost Part 90 | . . . 20 70 . Squads Dispatched 12 | . 2 1 2 7 . Investigation 4 | . . 1 1 2 . Extermination 2 | . . . . 2 . Reinforcement 3 | . 2 . 1 . . Assault . | . . . . . . Garrison 3 | . . . . 3 . Intercept . | . . . . . . Searches Triggered . | . . . . . . Construction Impeded . | . . . . . . Haulers Reinforced . | . . . . . . Active Scanning Responses . | . . . . . . Cargo Convoy Interrupts . | . . . . . . Stealth | -11 -10 -9 -8 -7 -7 --------- Run | Yrd Mat Mat Mat Fac Low Distress Signals 4 | . 1 . 1 2 . Communications Jammed . | . . . . . . Distress Signals . | . . . . . . Times Spotted 45 | . 10 2 24 8 1 Peak Tracking Total 5 | . 2 3 5 5 1 Tactical Retreats 4 | . 3 . . 1 . Traps | -11 -10 -9 -8 -7 -7 ------- Run | Yrd Mat Mat Mat Fac Low Traps Triggered 1 | . . . . 1 . Indirectly . | . . . . . . Trap Hack Attempts . | . . . . . . Triggered . | . . . . . . Disarmed . | . . . . . . Reprogrammed . | . . . . . . Reused . | . . . . . . Traps Extracted . | . . . . . . Installed . | . . . . . . Triggered . | . . . . . . Machines | -11 -10 -9 -8 -7 -7 ---------- Run | Yrd Mat Mat Mat Fac Low Machines Disabled 6 | . . . 6 . . Max in Single Turn 3 | . . . 3 . . Garrison Access 2 | . . . 1 1 . Machines Repaired . | . . . . . . Machines Dismantled . | . . . . . . Machines Sabotaged . | . . . . . . Overloaded Fab Kills . | . . . . . . Hacking | -11 -10 -9 -8 -7 -7 --------- Run | Yrd Mat Mat Mat Fac Low Machines Accessed 12 | . 2 1 5 4 . Terminals 6 | . 2 1 2 1 . Fabricators . | . . . . . . Repair Stations 1 | . . . . 1 . Recycling Units 1 | . . . . 1 . Scanalyzers 2 | . . . 2 . . Garrison Access 2 | . . . 1 1 . Total Hacks 41 | . 8 3 21 9 . Successful 25 | . 4 1 15 5 . Failed 16 | . 4 2 6 4 . Catastrophic 2 | . . 1 . 1 . Database Lockouts . | . . . . . . Manual 6 | . 4 . 2 . . Terminals 19 | . 8 3 5 3 . Fabricators . | . . . . . . Repair Stations 4 | . . . . 4 . Recycling Units 1 | . . . . 1 . Scanalyzers 15 | . . . 15 . . Garrison Access 2 | . . . 1 1 . Terminal Hacks 8 | . 4 1 2 1 . Emergency Access Points 1 | . . . . 1 . Terminal Index 1 | . . . 1 . . Alert Level 1 | . . . 1 . . Locate Traps 3 | . 2 1 . . . Hauler Manifests 1 | . 1 . . . . Zone Layout 1 | . 1 . . . . Fabricator Hacks . | . . . . . . Repair Station Hacks 2 | . . . . 2 . Scan Component 2 | . . . . 2 . Recycling Unit Hacks 1 | . . . . 1 . Report Inventory 1 | . . . . 1 . Scanalyzer 12 | . . . 12 . . Insert Component 4 | . . . 4 . . Analyze 4 | . . . 4 . . Retrieve Study 4 | . . . 4 . . Garrison Access Hacks 2 | . . . 1 1 . Seal Access 2 | . . . 1 1 . Unauthorized Hacks . | . . . . . . Terminals . | . . . . . . Fabricators . | . . . . . . Repair Stations . | . . . . . . Recycling Units . | . . . . . . Scanalyzers . | . . . . . . Garrison Access . | . . . . . . Data Cores Recovered . | . . . . . . Used . | . . . . . . Hacking Detections 10 | . 2 1 4 3 . Full Trace Events 5 | . . 1 2 2 . Feedback Events 2 | . . . 1 1 . Corruption 2 | . . . 1 1 . Feedback Blocked . | . . . . . . Robot Schematics Acquired . | . . . . . . Robots Built . | . . . . . . Authchips . | . . . . . . Time . | . . . . . . Total Robot Build Rating . | . . . . . . Part Schematics Acquired 4 | . . . 4 . . Parts Built . | . . . . . . Authchips . | . . . . . . Time . | . . . . . . Total Part Build Rating . | . . . . . . Part Studies Acquired 4 | . . . 4 . . Parts Repaired . | . . . . . . Time . | . . . . . . Parts Recycled . | . . . . . . Recycled Matter . | . . . . . . Retrieved Matter . | . . . . . . Retrieved Components . | . . . . . . Parts Scanalyzed 4 | . . . 4 . . Part Schematics Acquired 4 | . . . 4 . . Parts Damaged . | . . . . . . Bothacking | -11 -10 -9 -8 -7 -7 ------------ Run | Yrd Mat Mat Mat Fac Low Used RIF Installer . | . . . . . . Robots Hacked . | . . . . . . Non-combat . | . . . . . . Combat . | . . . . . . Robot Hacks Applied . | . . . . . . Relay Couplers Released . | . . . . . . Fabnet Peak Effective % . | . . . . . . Robots Rewired . | . . . . . . Allies Hacked . | . . . . . . Hacks Repelled . | . . . . . . Allies | -11 -10 -9 -8 -7 -7 -------- Run | Yrd Mat Mat Mat Fac Low Total Allies . | . . . . . . Largest Group . | . . . . . . Highest-Rated Group . | . . . . . . Highest-Rated Ally . | . . . . . . Total Orders . | . . . . . . Ally Attacks . | . . . . . . Total Damage . | . . . . . . Kills . | . . . . . . Allies Corrupted . | . . . . . . Allies Melted . | . . . . . . Intel | -11 -10 -9 -8 -7 -7 ------- Run | Yrd Mat Mat Mat Fac Low Active Infowar (turns) 1486 | . 554 191 575 166 . Sensors 1486 | . 554 191 575 166 . Robot Analysis Total . | . . . . . . Derelict Logs Recovered . | . . . . . . Drone Launches . | . . . . . . Drone Recoveries . | . . . . . . Exploration | -11 -10 -9 -8 -7 -7 ------------- Run | Yrd Mat Mat Mat Fac Low Turns Passed 2487 | 55 654 191 748 702 137 Spaces Moved 1756 | 38 406 120 641 498 53 Core 15 | 5 . . . . 10 Treads . | . . . . . . Legs 1741 | 33 406 120 641 498 43 Wheels . | . . . . . . Hover . | . . . . . . Flight . | . . . . . . Fastest Speed 50 | 50 120 90 75 75 150 Average Speed 112 | 117 120 117 83 125 251 Slowest Speed 500 | 150 120 120 180 255 500 Overloaded Moves . | . . . . . . Propulsion Burnouts . | . . . . . . Robots Hopped . | . . . . . . Potential Cave-ins 4 | . . . 4 . . Cave-ins Triggered . | . . . . . . Exploration Rate (%) 26 | 3 49 13 63 16 12 Regions Visited 5 Branch Regions 1 Pre-discovered Areas . | . . . . . . Known Exits Taken 3 | . . 1 1 1 . Unknown Exits Taken 2 | 1 1 . . . . Scrap Searched . | . . . . . . Spaces Dug 2 | . . . . 2 . Terrain Destroyed 114 | . . 23 89 2 . Melee 2 | . . . . 2 . Projectile . | . . . . . . AOE 112 | . . 23 89 . . Terrain Rammed . | . . . . . . Walls Destroyed . | . . . . . . Machines Disabled . | . . . . . . Actions | -11 -10 -9 -8 -7 -7 --------- Run | Yrd Mat Mat Mat Fac Low Total 2126 | 45 536 154 798 538 55 Wait 173 | . 107 2 64 . . Move 1751 | 37 405 119 640 497 53 Hop . | . . . . . . Pick Up 34 | 2 5 7 14 6 . Fast Attach 21 | 6 1 4 3 7 . Attach 10 | . . . 5 5 . Detach 2 | . . . 2 . . Swap 7 | . . 3 3 1 . Drop 24 | . . 10 13 1 . Fire 48 | . 18 9 21 . . Melee 38 | . . . 15 21 2 Ram . | . . . . . . Kick 8 | . . . 8 . . Crush . | . . . . . . Escape Stasis . | . . . . . . Rewire 10 | . . . 10 . . Trap . | . . . . . . Miscellaneous . | . . . . . . Route ------- -11/Scrapyard -10/Materials (discovered 2 exits: *Mat x2) -9/Materials -8/Materials -7/Factory -7/Lower Caves History --------- Turn | Location | Event 32 | -11/Scrapyard | Discovered new exit (range 16) 56 | -11/Scrapyard | Entered Materials 57 | -10/Materials | Met a group of wandering Federalists 104 | -10/Materials | Discovered new exit (range 18) 310 | -10/Materials | Build established: Mutant 608 | -10/Materials | Discovered new exit (range 10) 710 | -10/Materials | Entered another Materials area 710 | -9/Materials | Evolved 2 slots: Utility x2 873 | -9/Materials | Discovered new exit (range 10) 900 | -9/Materials | Identified exit to Materials 901 | -9/Materials | Entered another Materials area 901 | -8/Materials | Evolved 2 slots: Propulsion x1, Weapon x1 1637 | -8/Materials | Discovered new exit (range 16) 1649 | -8/Materials | Identified exit to Factory 1649 | -8/Materials | Entered Factory 1649 | -7/Factory | Evolved 2 slots: Power x1, Utility x1 1817 | -7/Factory | Garrison activated, responded to threat 1865 | -7/Factory | Lost 7 parts (2p2n2u1w) 2122 | -7/Factory | Build established: Gladiator 2328 | -7/Factory | Discovered new exit (range 4) 2335 | -7/Factory | Identified exit to Lower Caves 2351 | -7/Factory | Entered Lower Caves 2459 | -7/Lower Caves | Spotted B-75 Beast 2473 | -7/Lower Caves | Core integrity fell below 50% 2485 | -7/Lower Caves | Core integrity fell below 20% 2488 | -7/Lower Caves | Destroyed by B-75 Beast with Heavy Machine Gun Last Messages --------------- EXIT=IDENTIFIED: LOWER CAVES ALERT: Potential suspicious activity detected, Programmers report to Factory Zone 7J. LOCATION=LOWER CAVES GOAL=ESCAPE VSS Leg+ destroyed. Reaction Control System destroyed. Katana+ destroyed. System corrupted: Matter fused (-7). Imp. Deuterium Engine destroyed. Dynamic Insulation System destroyed. Critical hit (Blast). Knocked back. Acquired 1 matter. Broken VSS Leg+ destroyed. Knocked back. Lgt. Nuclear Core destroyed. Katana+ destroyed. Knocked back. Sml. Storage Unit destroyed. Map ----- +----------------------------------------------------+ | ?????????????????????????????????????????????????? | | ?????????????????????????????????????????????????? | | ?????????????????????????????????????????????????? | | ?????????????????????????????????????????????????? | | ?????????????????????????????????????????????????? | | ?????????????????????????????????????????????????? | | ?????????????????????????????????????????????????? | | ?????????????????????????????????????????????????? | | ?????????????????????????????????????????????????? | | ?????????????????????????????????????????????????? | | ?????????????????????????????????????????????????? | | ?????????????????????????????????????????????????? | | ?????????????????????????????????????????????????? | | ?????????????????????????????????????????????????? | | ????????????????????????????####?????????????????? | | ???????????????????????????? #?????????????????? | | ???????????????????????????? #?????????????????? | | ????????????????????????????# #?????????????????? | | ????????????????????#######?# #?????????????????? | | ????????????????????? ### ####???%#?????????# | | ?????????????????????? ### #?????????" | | ???????????????????????# % #????????#" | | ???????????????????????# %???????????#" | | ???????????????????????# BB ;#???????????????# | | ???????????????????????# /BB% #????????????##### | | ???????????????????????# @ #???????????## " | | ???????????????????????# ! % #??????????## | | ???????????????????????#####;; #?????????## | | ???????????????????????????### #???????### # | | ?????????????????????????????# %#??????## # | | ????????????????????????????## #?????## | | ??????????????????????????### ##???## | | ?????????????????????????## ##?## | | ???????????????????????### ### ## | | ???????????????????????# ### ### | | ???????????????????????# ##?# #?## | | ???????????????????????# #### ##??# ##?# # | | ???????????????????????###???#### ##???## #?### | | ????????????????????????????????####?????#####???? | | ?????????????????????????????????????????????????? | | ?????????????????????????????????????????????????? | | ?????????????????????????????????????????????????? | | ?????????????????????????????????????????????????? | | ?????????????????????????????????????????????????? | | ?????????????????????????????????????????????????? | | ?????????????????????????????????????????????????? | | ?????????????????????????????????????????????????? | | ?????????????????????????????????????????????????? | | ?????????????????????????????????????????????????? | | ?????????????????????????????????????????????????? | +----------------------------------------------------+ Best States ------------- Heat Dissipation 34 Energy Generation 25 Energy Capacity 350 Matter Stores 300 Matter Capacity 300 Sight Range 16 Robot Scan Range 14 Terrain Scan Density 10 EM Shielding 2 Evasion (%) 68 Targeting Accuracy 6 Melee Accuracy 6 Item Schematics ----------------- Katana | -8/Materials | Scanalyzed Melee Analysis Suite | -8/Materials | Scanalyzed Reaction Control System | -8/Materials | Scanalyzed VSS Leg | -8/Materials | Scanalyzed Robot Schematics ------------------ None Fabricated ------------ Nothing Repaired ---------- Nothing Studied --------- Katana | -8/Materials | Hacked VSS Leg | -8/Materials | Hacked Lgt. Deuterium Engine | -8/Materials | Hacked Imp. Ion Engine | -8/Materials | Hacked Alien Tech Used ----------------- None Achievements -------------- Ambidextrous Deadly Force Challenges ------------ None Game ------ Seed BlastMappingShield Manual? 0 Play Time 00:30:17 Cumulative 21.4 hours Start 2026.03.04 @ 20:10:34 End 2026.03.04 @ 20:40:35 Sessions 1 Manual Loads 0 Difficulty Rogue Special Mode None Game No. 31 Rogue 31 Adventurer 0 Explorer 0 Win Type - Total 0 Types 0/0/0/0/0/0/0/0/0/0 Lore% 6 Gallery% 19 Achievement% 17 Wizard Run 0 Options --------- Layout 1 ASCII 0 Keyboard 1 Movement Arrows Keybinds 0 Fullscreen 1 Font 24/Smallcaps Map View 50x35 Zoom Use 0% Tactical HUD 0 Map Filters NONE Filters NONE Steam 1 RUN: 493da48a-126f-48bf-81e0-2bde655daa32